[Event "Titled Tuesday Blitz November 29 Early 2022"]
[White "Poltorak, Sebastian"]
[Black "Girel, Joseph"]
[WhiteFideId "1199498"]
[BlackFideId "36033561"]
[WhiteElo "2196"]
[BlackElo "2281"]
[Result "0-1"]
[Round "10"]
[TimeControl "180+1"]
[Date "2022.11.29"]
[WhiteClock "0:00:04"]
[BlackClock "0:00:46"]

1. d4 {[%clk 0:03:00]}  Nf6 {[%clk 0:02:58]} 2. c4 {[%clk 0:03:00]}  c5 {[%clk 0:02:57]} 3. d5 {[%clk 0:03:00]}  b5 {[%clk 0:02:58]} 4. Qc2 {[%clk 0:03:00]}  d6 {[%clk 0:02:49]} 5. e4 {[%clk 0:02:59]}  bxc4 {[%clk 0:02:48]} 6. Bxc4 {[%clk 0:02:59]}  g6 {[%clk 0:02:49]} 7. Nf3 {[%clk 0:02:58]}  Bg7 {[%clk 0:02:49]} 8. O-O {[%clk 0:02:59]}  O-O {[%clk 0:02:49]} 9. Bd2 {[%clk 0:02:59]}  Ba6 {[%clk 0:02:49]} 10. Na3 {[%clk 0:02:58]}  Bxc4 {[%clk 0:02:48]} 11. Nxc4 {[%clk 0:02:59]}  Nbd7 {[%clk 0:02:48]} 12. Bc3 {[%clk 0:02:58]}  Qc7 {[%clk 0:02:43]} 13. Rfe1 {[%clk 0:02:51]}  Ne8 {[%clk 0:02:38]} 14. Rad1 {[%clk 0:02:49]}  Bxc3 {[%clk 0:02:37]} 15. Qxc3 {[%clk 0:02:50]}  Rb8 {[%clk 0:02:33]} 16. e5 {[%clk 0:02:38]}  Ng7 {[%clk 0:02:31]} 17. exd6 {[%clk 0:02:00]}  exd6 {[%clk 0:02:32]} 18. Na5 {[%clk 0:01:58]}  Nb6 {[%clk 0:02:23]} 19. Nc6 {[%clk 0:01:56]}  Rbe8 {[%clk 0:02:24]} 20. Qd3 {[%clk 0:01:47]}  Nf5 {[%clk 0:02:20]} 21. Ng5 {[%clk 0:01:41]}  Ne7 {[%clk 0:01:50]} 22. Nxe7+ {[%clk 0:01:07]}  Rxe7 {[%clk 0:01:51]} 23. Ne4 {[%clk 0:00:59]}  Nd7 {[%clk 0:01:44]} 24. Nc3 {[%clk 0:00:48]}  Rfe8 {[%clk 0:01:41]} 25. Rxe7 {[%clk 0:00:44]}  Rxe7 {[%clk 0:01:42]} 26. Qd2 {[%clk 0:00:45]}  Qb6 {[%clk 0:01:35]} 27. h3 {[%clk 0:00:38]}  Nf6 {[%clk 0:01:31]} 28. b3 {[%clk 0:00:34]}  Qb4 {[%clk 0:01:30]} 29. Na4 {[%clk 0:00:23]}  Qxd2 {[%clk 0:01:22]} 30. Rxd2 {[%clk 0:00:24]}  Re1+ {[%clk 0:01:22]} 31. Kh2 {[%clk 0:00:24]}  Ne4 {[%clk 0:01:18]} 32. Rc2 {[%clk 0:00:24]}  Rd1 {[%clk 0:01:16]} 33. Re2 {[%clk 0:00:21]}  Rd4 {[%clk 0:01:08]} 34. Nb2 {[%clk 0:00:14]}  Nc3 {[%clk 0:01:03]} 35. Re8+ {[%clk 0:00:12]}  Kg7 {[%clk 0:01:03]} 36. Nc4 {[%clk 0:00:12]}  Rxd5 {[%clk 0:01:02]} 37. Ra8 {[%clk 0:00:11]}  Nxa2 {[%clk 0:01:00]} 38. Rxa7 {[%clk 0:00:11]}  Nc1 {[%clk 0:01:00]} 39. Rb7 {[%clk 0:00:11]}  Nd3 {[%clk 0:00:58]} 40. Nb6 {[%clk 0:00:10]}  Rd4 {[%clk 0:00:55]} 41. Nd7 {[%clk 0:00:06]}  Nxf2 {[%clk 0:00:54]} 42. Nb6 {[%clk 0:00:04]}  Rb4 {[%clk 0:00:53]} 43. Rb8 {[%clk 0:00:04]}  Rxb3 {[%clk 0:00:51]} 44. Kg1 {[%clk 0:00:04]}  Ne4 {[%clk 0:00:50]} 45. Kf1 {[%clk 0:00:05]}  Nf6 {[%clk 0:00:50]} 46. Ke2 {[%clk 0:00:05]}  c4 {[%clk 0:00:47]} 47. Kd2 {[%clk 0:00:05]}  d5 {[%clk 0:00:47]} 48. Kc2 {[%clk 0:00:05]}  d4 {[%clk 0:00:47]} 49. Rb7 {[%clk 0:00:04]}  d3+ {[%clk 0:00:46]} 50. Kd2 {[%clk 0:00:04]}  Ne4+ {[%clk 0:00:46]} 0-1


[Site "https://www.chess.com"]

[Event "Titled Tuesday Blitz November 29 Early 2022"]
[White "Postnikov, Daniil"]
[Black "Shipov, Sergei"]
[WhiteFideId "4166329"]
[BlackFideId "4113624"]
[WhiteElo "2261"]
[BlackElo "2800"]
[Result "1-0"]
[Round "10"]
[TimeControl "180+1"]
[Date "2022.11.29"]
[WhiteClock "0:02:24"]
[BlackClock "0:01:59"]

1. e4 {[%clk 0:03:00]}  e6 {[%clk 0:02:59]} 2. d4 {[%clk 0:02:57]}  d5 {[%clk 0:02:59]} 3. e5 {[%clk 0:02:58]}  c5 {[%clk 0:02:59]} 4. c3 {[%clk 0:02:59]}  Nc6 {[%clk 0:03:00]} 5. Nf3 {[%clk 0:02:59]}  Bd7 {[%clk 0:03:00]} 6. Na3 {[%clk 0:03:00]}  cxd4 {[%clk 0:02:56]} 7. cxd4 {[%clk 0:03:01]}  Bb4+ {[%clk 0:02:56]} 8. Bd2 {[%clk 0:03:00]}  Qb6 {[%clk 0:02:54]} 9. Nc2 {[%clk 0:03:00]}  Bxd2+ {[%clk 0:02:54]} 10. Qxd2 {[%clk 0:03:01]}  Qxb2 {[%clk 0:02:54]} 11. Bd3 {[%clk 0:03:01]}  Nge7 {[%clk 0:02:52]} 12. O-O {[%clk 0:03:01]}  Qb6 {[%clk 0:02:52]} 13. Rab1 {[%clk 0:03:01]}  Qc7 {[%clk 0:02:52]} 14. Ne3 {[%clk 0:03:00]}  a6 {[%clk 0:02:41]} 15. Rfc1 {[%clk 0:03:00]}  h6 {[%clk 0:02:40]} 16. h4 {[%clk 0:03:00]}  O-O {[%clk 0:02:35]} 17. h5 {[%clk 0:02:59]}  b5 {[%clk 0:02:33]} 18. Ng4 {[%clk 0:02:58]}  Qb6 {[%clk 0:01:59]} 19. Nf6+ {[%clk 0:02:24]} 1-0


[Site "https://www.chess.com"]

[Event "Titled Tuesday Blitz November 29 Early 2022"]
[White "Prohorov, Olexandr"]
[Black "Hirneise, Jens"]
[WhiteFideId "14105578"]
[BlackFideId "24614734"]
[WhiteElo "1993"]
[BlackElo "2344"]
[Result "1/2-1/2"]
[Round "10"]
[TimeControl "180+1"]
[Date "2022.11.30"]
[WhiteClock "0:02:45"]
[BlackClock "0:02:15"]

1. d4 {[%clk 0:02:58]}  e6 {[%clk 0:02:56]} 2. c4 {[%clk 0:02:57]}  Bb4+ {[%clk 0:02:56]} 3. Bd2 {[%clk 0:02:57]}  Bxd2+ {[%clk 0:02:54]} 4. Qxd2 {[%clk 0:02:57]}  Nf6 {[%clk 0:02:54]} 5. Nc3 {[%clk 0:02:58]}  O-O {[%clk 0:02:54]} 6. e4 {[%clk 0:02:58]}  d6 {[%clk 0:02:54]} 7. Nf3 {[%clk 0:02:57]}  Nc6 {[%clk 0:02:53]} 8. d5 {[%clk 0:02:54]}  exd5 {[%clk 0:02:53]} 9. exd5 {[%clk 0:02:52]}  Re8+ {[%clk 0:02:52]} 10. Be2 {[%clk 0:02:53]}  Ne7 {[%clk 0:02:48]} 11. O-O {[%clk 0:02:52]}  Ng6 {[%clk 0:02:48]} 12. h3 {[%clk 0:02:52]}  Ne4 {[%clk 0:02:23]} 13. Nxe4 {[%clk 0:02:45]}  Rxe4 {[%clk 0:02:23]} 14. Bd3 {[%clk 0:02:45]}  Re8 {[%clk 0:02:15]} 15. Rfe1 {[%clk 0:02:45]} 1/2-1/2


[Site "https://www.chess.com"]

[Event "Titled Tuesday Blitz November 29 Early 2022"]
[White "Reprintsev, Alexander"]
[Black "Kleiman, Jake"]
[WhiteFideId "14100541"]
[BlackFideId "2020041"]
[WhiteElo "2230"]
[BlackElo "2628"]
[Result "1-0"]
[Round "10"]
[TimeControl "180+1"]
[Date "2022.11.30"]
[WhiteClock "0:00:42"]
[BlackClock "0:00:13"]

1. e4 {[%clk 0:02:49]}  e5 {[%clk 0:02:59]} 2. f4 {[%clk 0:02:48]}  exf4 {[%clk 0:02:59]} 3. Bc4 {[%clk 0:02:48]}  Ne7 {[%clk 0:02:57]} 4. Nc3 {[%clk 0:02:46]}  d5 {[%clk 0:02:56]} 5. Nxd5 {[%clk 0:02:41]}  Nxd5 {[%clk 0:02:56]} 6. Bxd5 {[%clk 0:02:42]}  Nd7 {[%clk 0:02:51]} 7. d3 {[%clk 0:02:27]}  Nf6 {[%clk 0:02:50]} 8. Bxf4 {[%clk 0:02:24]}  Nxd5 {[%clk 0:02:50]} 9. exd5 {[%clk 0:02:25]}  Qxd5 {[%clk 0:02:49]} 10. Qe2+ {[%clk 0:02:24]}  Be6 {[%clk 0:02:46]} 11. Bxc7 {[%clk 0:02:16]}  Be7 {[%clk 0:02:10]} 12. Nf3 {[%clk 0:02:12]}  O-O {[%clk 0:02:06]} 13. c4 {[%clk 0:02:10]}  Bb4+ {[%clk 0:01:59]} 14. Kf1 {[%clk 0:02:10]}  Qd7 {[%clk 0:01:48]} 15. Be5 {[%clk 0:02:10]}  Rae8 {[%clk 0:01:45]} 16. a3 {[%clk 0:02:02]}  Bc5 {[%clk 0:01:39]} 17. d4 {[%clk 0:01:57]}  Bb6 {[%clk 0:01:28]} 18. c5 {[%clk 0:01:41]}  Bc7 {[%clk 0:01:17]} 19. Bxc7 {[%clk 0:01:36]}  Qxc7 {[%clk 0:01:18]} 20. Kf2 {[%clk 0:01:34]}  Bd5 {[%clk 0:01:08]} 21. Qd2 {[%clk 0:01:23]}  f6 {[%clk 0:01:00]} 22. Rae1 {[%clk 0:01:21]}  Re4 {[%clk 0:00:58]} 23. Rxe4 {[%clk 0:01:20]}  Bxe4 {[%clk 0:00:58]} 24. b4 {[%clk 0:01:16]}  Rd8 {[%clk 0:00:56]} 25. Re1 {[%clk 0:01:14]}  Bxf3 {[%clk 0:00:56]} 26. Kxf3 {[%clk 0:01:12]}  Qxh2 {[%clk 0:00:56]} 27. Re4 {[%clk 0:01:01]}  Qh5+ {[%clk 0:00:43]} 28. Kf2 {[%clk 0:00:59]}  Qd5 {[%clk 0:00:42]} 29. Qe3 {[%clk 0:00:57]}  Kf8 {[%clk 0:00:31]} 30. b5 {[%clk 0:00:54]}  h6 {[%clk 0:00:22]} 31. Kg3 {[%clk 0:00:48]}  Kf7 {[%clk 0:00:14]} 32. a4 {[%clk 0:00:48]}  Kg6 {[%clk 0:00:14]} 33. Rg4+ {[%clk 0:00:47]}  Kh7 {[%clk 0:00:14]} 34. Qe4+ {[%clk 0:00:47]}  Qxe4 {[%clk 0:00:13]} 35. Rxe4 {[%clk 0:00:46]}  Rd7 {[%clk 0:00:13]} 36. Kf4 {[%clk 0:00:45]}  Kg6 {[%clk 0:00:14]} 37. Ke3 {[%clk 0:00:46]}  Kf7 {[%clk 0:00:14]} 38. g4 {[%clk 0:00:44]}  g6 {[%clk 0:00:13]} 39. Kd3 {[%clk 0:00:44]}  f5 {[%clk 0:00:13]} 40. gxf5 {[%clk 0:00:44]}  gxf5 {[%clk 0:00:13]} 41. Rh4 {[%clk 0:00:42]}  Kg6 {[%clk 0:00:13]} 42. Kc4 {[%clk 0:00:42]}  Kg5 {[%clk 0:00:14]} 43. Rh1 {[%clk 0:00:42]}  f4 {[%clk 0:00:14]} 44. d5 {[%clk 0:00:42]}  f3 {[%clk 0:00:13]} 45. c6 {[%clk 0:00:43]}  bxc6 {[%clk 0:00:14]} 46. bxc6 {[%clk 0:00:43]}  Rc7 {[%clk 0:00:13]} 47. Kc5 {[%clk 0:00:42]}  h5 {[%clk 0:00:13]} 48. d6 {[%clk 0:00:43]}  Rf7 {[%clk 0:00:13]} 49. c7 {[%clk 0:00:42]} 1-0


[Site "https://www.chess.com"]

[Event "Titled Tuesday Blitz November 29 Early 2022"]
[White "Richter, Nils"]
[Black "Mogirzan, Matei-Valeriu"]
[WhiteFideId "12990809"]
[BlackFideId "1257455"]
[WhiteElo "2381"]
[BlackElo "1733"]
[Result "1-0"]
[Round "10"]
[TimeControl "180+1"]
[Date "2022.11.30"]
[WhiteClock "0:00:44"]
[BlackClock "0:00:01"]

1. e4 {[%clk 0:03:00]}  d6 {[%clk 0:02:54]} 2. d4 {[%clk 0:03:00]}  a6 {[%clk 0:02:52]} 3. c4 {[%clk 0:02:59]}  Nd7 {[%clk 0:02:52]} 4. Nc3 {[%clk 0:02:59]}  c5 {[%clk 0:02:51]} 5. d5 {[%clk 0:02:57]}  g6 {[%clk 0:02:49]} 6. f4 {[%clk 0:02:55]}  Bg7 {[%clk 0:02:49]} 7. Nf3 {[%clk 0:02:56]}  Bxc3+ {[%clk 0:02:34]} 8. bxc3 {[%clk 0:02:55]}  Qa5 {[%clk 0:02:26]} 9. Be2 {[%clk 0:02:43]}  Ngf6 {[%clk 0:02:22]} 10. Nd2 {[%clk 0:02:34]}  Qxc3 {[%clk 0:02:15]} 11. Rb1 {[%clk 0:02:30]}  Nxe4 {[%clk 0:01:57]} 12. Rb3 {[%clk 0:01:58]}  Qd4 {[%clk 0:01:49]} 13. Nxe4 {[%clk 0:01:53]}  Qxe4 {[%clk 0:01:49]} 14. Bb2 {[%clk 0:01:47]}  O-O {[%clk 0:01:41]} 15. O-O {[%clk 0:01:46]}  b5 {[%clk 0:01:35]} 16. Bd3 {[%clk 0:01:34]}  Qe3+ {[%clk 0:01:31]} 17. Kh1 {[%clk 0:01:34]}  Nb6 {[%clk 0:01:08]} 18. Bb1 {[%clk 0:01:18]}  Nxc4 {[%clk 0:00:35]} 19. Rxe3 {[%clk 0:01:08]}  Nxe3 {[%clk 0:00:36]} 20. Qd3 {[%clk 0:01:00]}  Nxf1 {[%clk 0:00:12]} 21. Qxf1 {[%clk 0:01:01]}  f6 {[%clk 0:00:10]} 22. h4 {[%clk 0:00:57]}  Ra7 {[%clk 0:00:04]} 23. h5 {[%clk 0:00:49]}  Bf5 {[%clk 0:00:04]} 24. Bxf5 {[%clk 0:00:46]}  gxf5 {[%clk 0:00:05]} 25. Qb1 {[%clk 0:00:47]}  Kf7 {[%clk 0:00:01]} 26. Qxf5 {[%clk 0:00:47]}  Rh8 {[%clk 0:00:01]} 27. h6 {[%clk 0:00:44]} 1-0


[Site "https://www.chess.com"]

[Event "Titled Tuesday Blitz November 29 Early 2022"]
[White "Rios Escobar, Adan"]
[Black "Przybylski, Wojciech"]
[WhiteFideId "3403645"]
[BlackFideId "1117599"]
[WhiteElo "2307"]
[BlackElo "2221"]
[Result "0-1"]
[Round "10"]
[TimeControl "180+1"]
[Date "2022.11.30"]
[WhiteClock "0:00:02"]
[BlackClock "0:00:55"]

1. d4 {[%clk 0:03:00]}  Nf6 {[%clk 0:02:49]} 2. g3 {[%clk 0:02:59]}  d5 {[%clk 0:02:45]} 3. c4 {[%clk 0:02:56]}  c6 {[%clk 0:02:46]} 4. Nf3 {[%clk 0:02:56]}  Bg4 {[%clk 0:02:45]} 5. Nc3 {[%clk 0:02:56]}  e6 {[%clk 0:02:45]} 6. Ne5 {[%clk 0:02:55]}  Nbd7 {[%clk 0:02:43]} 7. Nxg4 {[%clk 0:02:54]}  Nxg4 {[%clk 0:02:43]} 8. e4 {[%clk 0:02:53]}  Ngf6 {[%clk 0:02:42]} 9. cxd5 {[%clk 0:02:33]}  cxd5 {[%clk 0:02:37]} 10. exd5 {[%clk 0:02:26]}  Nxd5 {[%clk 0:02:33]} 11. Nxd5 {[%clk 0:02:12]}  exd5 {[%clk 0:02:34]} 12. Bg2 {[%clk 0:02:08]}  Be7 {[%clk 0:02:33]} 13. O-O {[%clk 0:02:06]}  Nb6 {[%clk 0:02:30]} 14. Qg4 {[%clk 0:01:59]}  O-O {[%clk 0:02:28]} 15. Re1 {[%clk 0:01:26]}  Bf6 {[%clk 0:02:23]} 16. Bh6 {[%clk 0:01:22]}  Re8 {[%clk 0:02:14]} 17. h4 {[%clk 0:01:20]}  Rc8 {[%clk 0:02:08]} 18. h5 {[%clk 0:01:12]}  Qd6 {[%clk 0:01:55]} 19. Bf4 {[%clk 0:01:01]}  Qb4 {[%clk 0:01:51]} 20. h6 {[%clk 0:00:36]}  Rxe1+ {[%clk 0:01:48]} 21. Kh2 {[%clk 0:00:29]}  Rxa1 {[%clk 0:01:41]} 22. Be5 {[%clk 0:00:29]}  Bxe5 {[%clk 0:01:34]} 23. f4 {[%clk 0:00:12]}  Qxd4 {[%clk 0:01:29]} 24. Qg5 {[%clk 0:00:07]}  Bf6 {[%clk 0:01:22]} 25. Qg4 {[%clk 0:00:07]}  g6 {[%clk 0:01:18]} 26. Bf3 {[%clk 0:00:02]}  Rc2+ {[%clk 0:01:12]} 27. Kh3 {[%clk 0:00:02]}  Qe4 {[%clk 0:00:56]} 28. Bxe4 {[%clk 0:00:02]}  dxe4 {[%clk 0:00:55]} 0-1


[Site "https://www.chess.com"]

[Event "Titled Tuesday Blitz November 29 Early 2022"]
[White "Roque Sola, Gisela"]
[Black "Gheorghiu, Calin"]
[WhiteFideId "5120241"]
[BlackFideId "1200305"]
[WhiteElo "1961"]
[BlackElo "2225"]
[Result "0-1"]
[Round "10"]
[TimeControl "180+1"]
[Date "2022.11.30"]
[WhiteClock "0:00:20"]
[BlackClock "0:00:07"]

1. e4 {[%clk 0:03:00]}  c5 {[%clk 0:02:49]} 2. Nf3 {[%clk 0:02:59]}  d6 {[%clk 0:02:49]} 3. d4 {[%clk 0:02:58]}  cxd4 {[%clk 0:02:50]} 4. Nxd4 {[%clk 0:02:58]}  Nf6 {[%clk 0:02:50]} 5. Nc3 {[%clk 0:02:57]}  a6 {[%clk 0:02:51]} 6. Be2 {[%clk 0:02:57]}  e5 {[%clk 0:02:51]} 7. Nb3 {[%clk 0:02:58]}  Be7 {[%clk 0:02:51]} 8. O-O {[%clk 0:02:57]}  O-O {[%clk 0:02:52]} 9. f4 {[%clk 0:02:57]}  exf4 {[%clk 0:02:53]} 10. Bxf4 {[%clk 0:02:56]}  Be6 {[%clk 0:02:53]} 11. Qd3 {[%clk 0:02:41]}  Nc6 {[%clk 0:02:52]} 12. Qg3 {[%clk 0:02:35]}  Ne5 {[%clk 0:02:39]} 13. Kh1 {[%clk 0:02:28]}  Qc7 {[%clk 0:02:28]} 14. Rad1 {[%clk 0:02:21]}  b5 {[%clk 0:02:26]} 15. Bd3 {[%clk 0:02:15]}  b4 {[%clk 0:02:19]} 16. Nd5 {[%clk 0:02:07]}  Nxd5 {[%clk 0:02:13]} 17. exd5 {[%clk 0:02:08]}  Bxd5 {[%clk 0:02:12]} 18. Bxh7+ {[%clk 0:02:02]}  Kxh7 {[%clk 0:02:13]} 19. Rxd5 {[%clk 0:02:01]}  Bf6 {[%clk 0:02:13]} 20. Rd4 {[%clk 0:01:19]}  Qxc2 {[%clk 0:02:08]} 21. Rxd6 {[%clk 0:01:14]}  Rad8 {[%clk 0:01:58]} 22. Bxe5 {[%clk 0:01:12]}  Rxd6 {[%clk 0:00:44]} 23. Bxd6 {[%clk 0:01:08]}  Rd8 {[%clk 0:00:45]} 24. Bxb4 {[%clk 0:01:02]}  Qxb2 {[%clk 0:00:41]} 25. Ba5 {[%clk 0:00:49]}  Rd5 {[%clk 0:00:18]} 26. Re1 {[%clk 0:00:46]}  g6 {[%clk 0:00:13]} 27. Qf3 {[%clk 0:00:41]}  Rf5 {[%clk 0:00:13]} 28. Qh3+ {[%clk 0:00:39]}  Kg7 {[%clk 0:00:13]} 29. Nc1 {[%clk 0:00:29]}  Qb5 {[%clk 0:00:10]} 30. Qd3 {[%clk 0:00:19]}  Qxa5 {[%clk 0:00:08]} 31. Nb3 {[%clk 0:00:20]}  Qxe1+ {[%clk 0:00:07]} 0-1


[Site "https://www.chess.com"]

[Event "Titled Tuesday Blitz November 29 Early 2022"]
[White "Roque Sola, Jose Luis"]
[Black "Vargas, Mauricio"]
[WhiteFideId "5120390"]
[BlackFideId "4404572"]
[WhiteElo "2117"]
[BlackElo "2025"]
[Result "0-1"]
[Round "10"]
[TimeControl "180+1"]
[Date "2022.11.30"]
[WhiteClock "0:00:19"]
[BlackClock "0:00:29"]

1. c4 {[%clk 0:03:00]}  e5 {[%clk 0:01:45]} 2. Nc3 {[%clk 0:02:58]}  Nc6 {[%clk 0:01:46]} 3. Nf3 {[%clk 0:02:58]}  f5 {[%clk 0:01:47]} 4. d3 {[%clk 0:02:57]}  Nf6 {[%clk 0:01:48]} 5. g3 {[%clk 0:02:57]}  Bb4 {[%clk 0:01:48]} 6. Bd2 {[%clk 0:02:49]}  Bxc3 {[%clk 0:01:49]} 7. Bxc3 {[%clk 0:02:49]}  d6 {[%clk 0:01:50]} 8. Bg2 {[%clk 0:02:48]}  O-O {[%clk 0:01:50]} 9. O-O {[%clk 0:02:48]}  Qe8 {[%clk 0:01:50]} 10. b4 {[%clk 0:02:42]}  Qh5 {[%clk 0:01:50]} 11. b5 {[%clk 0:02:11]}  Ne7 {[%clk 0:01:41]} 12. e3 {[%clk 0:02:04]}  f4 {[%clk 0:01:39]} 13. Nd2 {[%clk 0:01:48]}  Qh6 {[%clk 0:01:34]} 14. exf4 {[%clk 0:01:40]}  Bh3 {[%clk 0:01:27]} 15. fxe5 {[%clk 0:01:37]}  Ng4 {[%clk 0:01:25]} 16. f4 {[%clk 0:00:54]}  Nf5 {[%clk 0:01:02]} 17. Bxh3 {[%clk 0:00:43]}  Qxh3 {[%clk 0:01:01]} 18. Qe2 {[%clk 0:00:42]}  Rae8 {[%clk 0:00:48]} 19. Nf3 {[%clk 0:00:29]}  Nfe3 {[%clk 0:00:42]} 20. Rfe1 {[%clk 0:00:20]}  dxe5 {[%clk 0:00:32]} 21. fxe5 {[%clk 0:00:19]}  Rxf3 {[%clk 0:00:29]} 0-1


[Site "https://www.chess.com"]

[Event "Titled Tuesday Blitz November 29 Early 2022"]
[White "Rustemov, Alexander"]
[Black "Le, Tuan Minh"]
[WhiteFideId "4119002"]
[BlackFideId "12401153"]
[WhiteElo "2872"]
[BlackElo "2530"]
[Result "0-1"]
[Round "10"]
[TimeControl "180+1"]
[Date "2022.11.29"]
[WhiteClock "0:00:41"]
[BlackClock "0:00:31"]

1. d4 {[%clk 0:02:54]}  d5 {[%clk 0:02:59]} 2. c4 {[%clk 0:02:55]}  c6 {[%clk 0:02:59]} 3. cxd5 {[%clk 0:02:54]}  cxd5 {[%clk 0:02:59]} 4. Nc3 {[%clk 0:02:55]}  Nf6 {[%clk 0:03:00]} 5. Bf4 {[%clk 0:02:55]}  Nc6 {[%clk 0:03:00]} 6. e3 {[%clk 0:02:55]}  a6 {[%clk 0:03:01]} 7. Rc1 {[%clk 0:02:51]}  Bg4 {[%clk 0:02:58]} 8. Qb3 {[%clk 0:02:48]}  Na5 {[%clk 0:02:54]} 9. Qa4+ {[%clk 0:02:48]}  b5 {[%clk 0:02:40]} 10. Qc2 {[%clk 0:02:29]}  Rc8 {[%clk 0:02:32]} 11. Qb1 {[%clk 0:02:21]}  e6 {[%clk 0:02:32]} 12. Bd3 {[%clk 0:02:19]}  Bb4 {[%clk 0:02:24]} 13. Ne2 {[%clk 0:02:15]}  Bxe2 {[%clk 0:02:22]} 14. Kxe2 {[%clk 0:02:12]}  Bxc3 {[%clk 0:02:16]} 15. Rxc3 {[%clk 0:02:11]}  Rxc3 {[%clk 0:02:17]} 16. bxc3 {[%clk 0:02:12]}  O-O {[%clk 0:02:17]} 17. a4 {[%clk 0:02:03]}  bxa4 {[%clk 0:02:12]} 18. Qb4 {[%clk 0:02:00]}  Nc4 {[%clk 0:01:38]} 19. Rb1 {[%clk 0:01:47]}  Qc8 {[%clk 0:01:25]} 20. Qxa4 {[%clk 0:01:39]}  e5 {[%clk 0:01:15]} 21. Bxe5 {[%clk 0:01:32]}  Qg4+ {[%clk 0:01:15]} 22. Kf1 {[%clk 0:01:08]}  Nxe5 {[%clk 0:01:00]} 23. Bxa6 {[%clk 0:00:53]}  Ne4 {[%clk 0:00:38]} 24. Qc2 {[%clk 0:00:52]}  Qf5 {[%clk 0:00:34]} 25. Kg1 {[%clk 0:00:49]}  Nf3+ {[%clk 0:00:33]} 26. Kh1 {[%clk 0:00:41]}  Ng3+ {[%clk 0:00:31]} 0-1


[Site "https://www.chess.com"]

[Event "Titled Tuesday Blitz November 29 Early 2022"]
[White "Sadhwani, Raunak"]
[Black "Indjic, Aleksandar"]
[WhiteFideId "35093487"]
[BlackFideId "911925"]
[WhiteElo "2656"]
[BlackElo "2592"]
[Result "0-1"]
[Round "10"]
[TimeControl "180+1"]
[Date "2022.11.29"]
[WhiteClock "0:00:03"]
[BlackClock "0:00:09"]

1. e4 {[%clk 0:03:00]}  c5 {[%clk 0:03:00]} 2. Nf3 {[%clk 0:03:00]}  d6 {[%clk 0:03:00]} 3. Bb5+ {[%clk 0:03:00]}  Nd7 {[%clk 0:03:00]} 4. a4 {[%clk 0:02:58]}  Nf6 {[%clk 0:02:59]} 5. Nc3 {[%clk 0:02:58]}  a6 {[%clk 0:02:58]} 6. Be2 {[%clk 0:02:57]}  b6 {[%clk 0:02:53]} 7. d4 {[%clk 0:02:57]}  cxd4 {[%clk 0:02:42]} 8. Qxd4 {[%clk 0:02:58]}  Bb7 {[%clk 0:02:40]} 9. O-O {[%clk 0:02:55]}  e5 {[%clk 0:02:36]} 10. Qe3 {[%clk 0:02:52]}  Rc8 {[%clk 0:02:36]} 11. Rd1 {[%clk 0:02:48]}  Be7 {[%clk 0:02:35]} 12. h3 {[%clk 0:02:35]}  O-O {[%clk 0:02:34]} 13. b3 {[%clk 0:02:32]}  Nc5 {[%clk 0:02:32]} 14. Nd2 {[%clk 0:02:32]}  Ne6 {[%clk 0:02:31]} 15. Bb2 {[%clk 0:02:30]}  Nd4 {[%clk 0:02:29]} 16. Bd3 {[%clk 0:02:29]}  Re8 {[%clk 0:02:22]} 17. Nf3 {[%clk 0:02:26]}  Ne6 {[%clk 0:02:08]} 18. Bc4 {[%clk 0:02:23]}  Qc7 {[%clk 0:02:06]} 19. Ba3 {[%clk 0:02:09]}  Bf8 {[%clk 0:02:06]} 20. Rd2 {[%clk 0:02:05]}  h6 {[%clk 0:01:52]} 21. Rad1 {[%clk 0:01:53]}  Red8 {[%clk 0:01:48]} 22. Bb2 {[%clk 0:01:46]}  Nc5 {[%clk 0:01:39]} 23. Nd5 {[%clk 0:01:46]}  Nxd5 {[%clk 0:01:36]} 24. Bxd5 {[%clk 0:01:47]}  Bxd5 {[%clk 0:01:33]} 25. Rxd5 {[%clk 0:01:48]}  b5 {[%clk 0:01:33]} 26. axb5 {[%clk 0:01:48]}  axb5 {[%clk 0:01:34]} 27. Qe2 {[%clk 0:01:30]}  Ne6 {[%clk 0:01:31]} 28. g3 {[%clk 0:01:12]}  Qxc2 {[%clk 0:01:28]} 29. Qxc2 {[%clk 0:01:13]}  Rxc2 {[%clk 0:01:27]} 30. Bxe5 {[%clk 0:01:13]}  dxe5 {[%clk 0:01:08]} 31. Rxd8 {[%clk 0:01:14]}  Nxd8 {[%clk 0:01:09]} 32. Rxd8 {[%clk 0:01:15]}  f6 {[%clk 0:01:09]} 33. Nh4 {[%clk 0:00:39]}  Kf7 {[%clk 0:01:09]} 34. Nf5 {[%clk 0:00:39]}  g6 {[%clk 0:00:50]} 35. Ne3 {[%clk 0:00:39]}  Rc1+ {[%clk 0:00:49]} 36. Kg2 {[%clk 0:00:39]}  Bc5 {[%clk 0:00:50]} 37. Rd3 {[%clk 0:00:19]}  Ke6 {[%clk 0:00:47]} 38. h4 {[%clk 0:00:19]}  h5 {[%clk 0:00:46]} 39. Nd5 {[%clk 0:00:17]}  Rc2 {[%clk 0:00:43]} 40. Nc7+ {[%clk 0:00:17]}  Kf7 {[%clk 0:00:39]} 41. Nxb5 {[%clk 0:00:17]}  Bxf2 {[%clk 0:00:36]} 42. Kh3 {[%clk 0:00:06]}  Bg1 {[%clk 0:00:36]} 43. g4 {[%clk 0:00:06]}  Bh2 {[%clk 0:00:32]} 44. gxh5 {[%clk 0:00:05]}  gxh5 {[%clk 0:00:33]} 45. Nd6+ {[%clk 0:00:03]}  Kf8 {[%clk 0:00:33]} 46. Nf5 {[%clk 0:00:03]}  Bf4 {[%clk 0:00:32]} 47. Ng3 {[%clk 0:00:04]}  Bxg3 {[%clk 0:00:30]} 48. Kxg3 {[%clk 0:00:05]}  Kf7 {[%clk 0:00:30]} 49. Kf3 {[%clk 0:00:05]}  Kg6 {[%clk 0:00:27]} 50. Kg3 {[%clk 0:00:05]}  Re2 {[%clk 0:00:27]} 51. Kf3 {[%clk 0:00:05]}  Re1 {[%clk 0:00:27]} 52. Re3 {[%clk 0:00:03]}  Rg1 {[%clk 0:00:26]} 53. Kf2 {[%clk 0:00:02]}  Rh1 {[%clk 0:00:25]} 54. Kg3 {[%clk 0:00:02]}  Kf7 {[%clk 0:00:26]} 55. Rc3 {[%clk 0:00:03]}  Rg1+ {[%clk 0:00:25]} 56. Kf3 {[%clk 0:00:02]}  Rg4 {[%clk 0:00:25]} 57. b4 {[%clk 0:00:03]}  Rf4+ {[%clk 0:00:25]} 58. Ke3 {[%clk 0:00:03]}  Rxh4 {[%clk 0:00:25]} 59. Rc7+ {[%clk 0:00:03]}  Kg6 {[%clk 0:00:25]} 60. b5 {[%clk 0:00:04]}  Rh3+ {[%clk 0:00:26]} 61. Kd2 {[%clk 0:00:04]}  Rb3 {[%clk 0:00:25]} 62. Rc5 {[%clk 0:00:04]}  h4 {[%clk 0:00:25]} 63. Kc2 {[%clk 0:00:05]}  Rb4 {[%clk 0:00:25]} 64. Kc3 {[%clk 0:00:06]}  Rb1 {[%clk 0:00:17]} 65. Kc2 {[%clk 0:00:06]}  Rb4 {[%clk 0:00:13]} 66. Kc3 {[%clk 0:00:06]}  Rxe4 {[%clk 0:00:12]} 67. b6 {[%clk 0:00:06]}  h3 {[%clk 0:00:12]} 68. b7 {[%clk 0:00:06]}  h2 {[%clk 0:00:09]} 69. b8=Q {[%clk 0:00:05]}  h1=Q {[%clk 0:00:09]} 70. Qg8+ {[%clk 0:00:04]}  Kf5 {[%clk 0:00:09]} 71. Qc8+ {[%clk 0:00:04]}  Kf4 {[%clk 0:00:10]} 72. Rc6 {[%clk 0:00:02]}  Qc1+ {[%clk 0:00:09]} 73. Kb3 {[%clk 0:00:02]}  Qb1+ {[%clk 0:00:09]} 74. Kc3 {[%clk 0:00:02]}  Qb4+ {[%clk 0:00:08]} 75. Kd3 {[%clk 0:00:03]}  Re3+ {[%clk 0:00:08]} 76. Kc2 {[%clk 0:00:03]}  Re2+ {[%clk 0:00:09]} 0-1


[Site "https://www.chess.com"]